lending/lending_fUSD_20240110
["ID","MTS","AMOUNT","RATE_DAILY","PERIOD"]
[311026092,1704873071171,-644.75,0.00030684,2]
[311026093,1704873071180,-500.0,0.00030684,2]
[311026094,1704873071189,-944.68,0.00030684,2]
[311026095,1704873071199,-500.0,0.00030684,2]
[311026096,1704873071208,-566.35,0.00030684,2]
[311026097,1704873071218,-555.57352743,0.00030684,2]
[311026098,1704873071228,-1023.32,0.00030684,4]
[311026099,1704873071237,-500.0,0.00030684,2]
[311026100,1704873071247,-500.0,0.00030684,2]
[311026101,1704873071256,-695.65,0.00030684,2]
[311026102,1704873071265,-500.0,0.00030684,2]
[311026103,1704873071275,-500.0,0.00030684,2]
[311026104,1704873071284,-500.0,0.00030684,2]
[311026105,1704873071294,-500.0,0.00030684,2]
[311026106,1704873071303,-500.0,0.00030684,2]
[311026107,1704873071313,-895.37,0.00030684,2]
[311026108,1704873071323,-794.51,0.00030684,2]
[311026109,1704873071332,-500.0,0.00030684,2]
[311026110,1704873071342,-500.0,0.00030684,2]
[311026111,1704873071351,-555.48,0.00030684,2]
[311026112,1704873071361,-979.38,0.00030684,2]
[311026113,1704873071371,-500.0,0.00030684,2]
[311026114,1704873071381,-746.37,0.00030684,2]
[311026115,1704873071392,-500.0,0.00030684,2]
[311026116,1704873071401,-1034.89,0.00030684,2]
[311026117,1704873071410,-500.0,0.00030684,2]
[311026118,1704873071420,-806.42,0.00030684,2]
[311026119,1704873071429,-687.36,0.00030684,2]
[311026120,1704873071439,-1000.0,0.00030684,2]
[311026121,1704873071449,-500.0,0.00030684,2]
[311026122,1704873071459,-500.0,0.00030684,2]
[311026123,1704873071469,-781.57,0.00030684,2]
[311026124,1704873071478,-279.39177507,0.00030684,2]
[311026125,1704873071487,-758.09,0.00030684,2]
[311026126,1704873071496,-500.0,0.00030684,2]
[311026127,1704873071506,-566.15,0.00030684,2]
[311026128,1704873071515,-500.0,0.00030684,2]
[311026129,1704873071525,-300.0,0.00030684,2]
[311026130,1704873071534,-674.7,0.00030684,2]
[311026131,1704873071543,-653.09,0.00030684,2]
[311026132,1704873071552,-641.05,0.00030684,2]
[311026133,1704873071561,-500.0,0.00030684,2]
[311026134,1704873071570,-1144.59,0.00030684,2]
[311026135,1704873071580,-500.0,0.00030684,2]
[311026136,1704873071589,-618.68,0.00030684,2]
[311026137,1704873071598,-941.67,0.00030684,2]
[311026138,1704873071608,-681.29,0.00030684,2]
[311026139,1704873071620,-1000.0,0.00030684,2]
[311026140,1704873071630,-500.0,0.00030684,2]
[311026141,1704873071640,-1523.66,0.00030684,2]
[311026142,1704873071651,-500.0,0.00030684,2]
[311026143,1704873071661,-500.0,0.00030684,2]
[311026144,1704873071672,-500.0,0.00030684,2]
[311026145,1704873071682,-500.0,0.00030684,2]
[311026146,1704873071693,-500.0,0.00030684,2]
[311026147,1704873071703,-500.0,0.00030684,2]
[311026148,1704873071712,-500.0,0.00030684,2]
[311026149,1704873071722,-500.0,0.00030684,2]
[311026150,1704873071731,-500.0,0.00030684,2]
[311026151,1704873071740,-1684.92,0.00030684,2]
[311026152,1704873071749,-617.56,0.00030684,2]
[311026153,1704873071758,-500.0,0.00030684,2]
[311026154,1704873071767,-1487.26,0.00030684,2]
[311026155,1704873071776,-500.0,0.00030684,2]
[311026156,1704873071785,-664.35,0.00030684,2]
[311026157,1704873071794,-500.0,0.00030684,2]
[311026158,1704873071803,-500.0,0.00030684,2]
[311026159,1704873071813,-790.36,0.00030684,2]
[311026160,1704873071822,-500.0,0.00030684,2]
[311026161,1704873071831,-3111.8,0.00030684,2]
[311026162,1704873071841,-500.0,0.00030684,2]
[311026163,1704873071850,-500.0,0.00030684,2]
[311026164,1704873071860,-523.02,0.00030684,2]
[311026165,1704873071870,-500.0,0.00030684,2]
[311026166,1704873071879,-500.0,0.00030684,2]
[311026167,1704873071889,-500.0,0.00030684,2]
[311026168,1704873071898,-234.10944026,0.00030684,2]
[311026169,1704873071907,-500.0,0.00030684,2]
[311026170,1704873071916,-500.0,0.00030684,2]
[311026171,1704873071926,-1197.89,0.00030684,2]
[311026172,1704873071935,-565.37,0.00030684,2]
[311026173,1704873071945,-500.0,0.00030684,2]
[311026174,1704873071954,-1242.31,0.00030684,2]
[311026175,1704873071964,-500.0,0.00030684,2]
[311026176,1704873071973,-1024.31,0.00030684,2]
[311026177,1704873071982,-535.71,0.00030684,2]
[311026178,1704873071991,-1696.11,0.00030684,2]
[311026179,1704873072001,-1358.46,0.00030684,2]
[311026180,1704873072010,-500.0,0.00030684,2]
[311026181,1704873072019,-1165.8,0.00030684,2]
[311026182,1704873072028,-1127.04,0.00030684,2]
[311026183,1704873072037,-1121.62,0.00030684,2]
[311026184,1704873072047,-500.0,0.00030684,2]
[311026185,1704873072056,-500.0,0.00030684,2]
[311026186,1704873072065,-500.0,0.00030684,2]
[311026187,1704873072074,-408.69431709,0.00030684,2]
[311026188,1704873072083,-1563.61,0.00030684,2]
[311026189,1704873072093,-328.06441792,0.00030684,2]
[311026190,1704873072103,-500.0,0.00030684,2]
[311026191,1704873072112,-629.23,0.00030684,2]
[311026192,1704873072122,-1057.05,0.00030684,2]
[311026193,1704873072131,-500.0,0.00030684,2]
[311026194,1704873072141,-1707.59,0.00030684,2]
[311026195,1704873072150,-1314.54,0.00030684,2]
[311026196,1704873072159,-616.09,0.00030684,2]
[311026197,1704873072168,-798.58,0.00030684,2]
[311026198,1704873072177,-654.04,0.00030684,2]
[311026199,1704873072187,-500.0,0.00030684,2]
[311026200,1704873072196,-500.0,0.00030684,2]
[311026201,1704873072205,-500.0,0.00030684,2]
[311026202,1704873072215,-791.78,0.00030684,2]
[311026203,1704873072224,-1519.78,0.00030684,2]
[311026204,1704873072233,-1032.6,0.00030684,2]
[311026205,1704873072242,-944.59,0.00030684,2]
[311026206,1704873072252,-500.0,0.00030684,2]
[311026207,1704873072261,-500.0,0.00030684,2]
[311026208,1704873072270,-1070.99,0.00030684,2]
[311026209,1704873072279,-500.0,0.00030684,2]
[311026210,1704873072289,-500.0,0.00030684,2]
[311026211,1704873072298,-834.05,0.00030684,2]
[311026212,1704873072307,-542.28,0.00030684,2]
[311026213,1704873072317,-500.0,0.00030684,2]
[311026214,1704873072326,-1242.0,0.00030684,2]
[311026215,1704873072335,-542.76,0.00030684,2]
[311026216,1704873072345,-264.98189748,0.00030684,2]
[311026217,1704873072355,-1254.84,0.00030684,2]
[311026218,1704873072365,-1541.66,0.00030684,2]
[311026219,1704873072374,-1323.81,0.00030684,2]
[311026220,1704873072383,-500.0,0.00030684,2]
[311026221,1704873072393,-1114.88,0.00030684,2]
[311026222,1704873072402,-1076.73,0.00030684,2]
[311026223,1704873072411,-880.32,0.00030684,2]
[311026224,1704873072421,-886.36,0.00030684,2]
[311026225,1704873072430,-500.0,0.00030684,2]
[311026226,1704873072439,-539.61,0.00030684,2]
[311026227,1704873072448,-951.35,0.00030684,2]
[311026228,1704873072457,-1305.55,0.00030684,2]
[311026229,1704873072466,-500.0,0.00030684,2]
[311026230,1704873072475,-500.0,0.00030684,2]
[311026231,1704873072485,-500.0,0.00030684,2]
[311026232,1704873072494,-2061.61,0.00030684,2]
[311026233,1704873072503,-661.44,0.00030684,2]
[311026234,1704873072512,-500.0,0.00030684,2]
[311026235,1704873072521,-1094.74,0.00030684,2]
[311026236,1704873072531,-500.0,0.00030684,2]
[311026237,1704873072541,-1473.64,0.00030684,2]
[311026238,1704873072550,-1657.99,0.00030684,2]
[311026239,1704873072559,-905.83,0.00030684,2]
[311026240,1704873072569,-500.0,0.00030684,2]
[311026241,1704873072578,-1210.18,0.00030684,2]
[311026242,1704873072588,-557.46,0.00030684,2]
[311026243,1704873072597,-500.0,0.00030684,2]
[311026244,1704873072606,-1402.24,0.00030684,2]
[311026245,1704873072615,-1285.08,0.00030684,2]
[311026246,1704873072625,-684.33,0.00030684,2]
[311026247,1704873072635,-743.21,0.00030684,2]
[311026248,1704873072644,-645.01,0.00030684,2]
[311026249,1704873072653,-500.0,0.00030684,2]
[311026250,1704873072662,-500.0,0.00030684,2]
[311026251,1704873072672,-627.64,0.00030684,2]
[311026252,1704873072681,-651.24,0.00030684,2]
[311026253,1704873072690,-500.0,0.00030684,2]
[311026254,1704873072701,-665.21,0.00030684,2]
[311026255,1704873072710,-792.43,0.00030684,2]
[311026256,1704873072720,-500.0,0.00030684,2]
[311026257,1704873072729,-1236.53,0.00030684,2]
[311026258,1704873072739,-703.78,0.00030684,2]
[311026259,1704873072748,-500.0,0.00030684,2]
[311026260,1704873072757,-500.0,0.00030684,2]
[311026261,1704873072767,-1669.06,0.00030684,2]
[311026262,1704873072776,-500.0,0.00030684,2]
[311026263,1704873072785,-2220.47,0.00030684,2]
[311026264,1704873072794,-608.94,0.00030684,2]
[311026265,1704873072804,-642.72,0.00030684,2]
[311026266,1704873072813,-500.0,0.00030684,2]
[311026267,1704873072822,-500.0,0.00030684,2]
[311026268,1704873072832,-800.0,0.00030684,2]
[311026269,1704873072842,-500.0,0.00030684,2]
[311026270,1704873072851,-945.82,0.00030684,2]
[311026271,1704873072861,-658.74,0.00030684,2]
[311026272,1704873072871,-500.0,0.00030684,2]
[311026273,1704873072881,-666.71,0.00030684,2]
[311026274,1704873072891,-500.0,0.00030684,2]
[311026275,1704873072900,-1104.64,0.00030684,2]
[311026276,1704873072910,-500.0,0.00030684,2]
[311026277,1704873072920,-500.0,0.00030684,2]
[311026278,1704873072930,-1401.68,0.00030684,2]
[311026279,1704873072940,-1424.61,0.00030684,2]
[311026280,1704873072949,-1037.5,0.00030684,2]
[311026281,1704873072959,-500.0,0.00030684,2]
[311026282,1704873072969,-500.0,0.00030684,2]
[311026283,1704873072979,-500.0,0.00030684,2]
[311026284,1704873072989,-500.0,0.00030684,2]
[311026285,1704873072999,-500.0,0.00030684,2]
[311026286,1704873073009,-500.0,0.00030684,2]
[311026287,1704873073019,-500.0,0.00030684,2]
[311026288,1704873073028,-500.0,0.00030684,2]
[311026289,1704873073039,-1293.7,0.00030684,2]
[311026290,1704873073048,-774.19,0.00030684,2]
[311026291,1704873073058,-775.07,0.00030684,2]
[311026292,1704873073068,-500.0,0.00030684,2]
[311026293,1704873073078,-500.0,0.00030684,2]
[311026294,1704873073088,-960.98,0.00030684,2]
[311026295,1704873073097,-500.0,0.00030684,2]
[311026296,1704873073108,-500.0,0.00030684,2]
[311026297,1704873073121,-1334.99,0.00030684,2]
[311026298,1704873073131,-500.0,0.00030684,2]
[311026299,1704873073141,-875.29,0.00030684,2]
[311026300,1704873073152,-500.0,0.00030684,2]
[311026301,1704873073162,-1098.09,0.00030684,2]
[311026302,1704873073172,-723.68,0.00030684,2]
[311026303,1704873073182,-500.0,0.00030684,2]
[311026304,1704873073192,-786.08,0.00030684,2]
[311026305,1704873073201,-1517.62,0.00030684,2]
[311026306,1704873073211,-572.06,0.00030684,2]
[311026307,1704873073221,-571.35,0.00030684,2]
[311026308,1704873073231,-504.24985168,0.00030684,2]
[311026309,1704873073240,-500.0,0.00030684,2]
[311026310,1704873073250,-500.0,0.00030684,2]
[311026311,1704873073260,-500.0,0.00030684,2]
[311026312,1704873073271,-500.0,0.00030684,2]
[311026313,1704873073281,-500.0,0.00030684,2]
[311026314,1704873073291,-500.0,0.00030684,2]
[311026315,1704873073301,-502.87783111,0.00030684,2]
[311026316,1704873073311,-866.33,0.00030684,2]
[311026317,1704873073321,-1000.0,0.00030684,7]
[311026318,1704873073331,-1313.47,0.00030684,2]
[311026319,1704873073341,-836.6,0.00030684,2]
[311026320,1704873073351,-500.0,0.00030684,2]
[311026321,1704873073361,-1152.55,0.00030684,2]
[311026322,1704873073373,-500.0,0.00030684,2]
[311026323,1704873073382,-500.0,0.00030684,2]
[311026324,1704873073394,-1556.25,0.00030684,2]
[311026325,1704873073404,-1256.03,0.00030684,2]
[311026326,1704873073416,-500.0,0.00030684,2]
[311026327,1704873073426,-1140.72,0.00030684,2]
[311026328,1704873073435,-500.0,0.00030684,2]
[311026329,1704873073453,-1324.64,0.00030684,2]
[311026330,1704873073465,-500.0,0.00030684,2]
[311026331,1704873073479,-1218.71,0.00030684,2]
[311026332,1704873073491,-853.1,0.00030684,2]
[311026333,1704873073502,-1269.98,0.00030684,2]
[311026334,1704873073513,-728.65,0.00030684,2]
[311026335,1704873073522,-1298.05,0.00030684,2]
[311026336,1704873073534,-1713.75,0.00030684,2]
[311026337,1704873073546,-500.0,0.00030684,2]
[311026338,1704873073557,-500.0,0.00030684,2]
[311026339,1704873073567,-500.0,0.00030684,2]
[311026340,1704873073577,-831.24,0.00030684,2]
[311026341,1704873073587,-569.63,0.00030684,2]
[311026342,1704873073604,-500.0,0.00030684,2]
[311026343,1704873073615,-500.0,0.00030684,2]
[311026344,1704873073627,-2031.17,0.00030684,2]
[311026345,1704873073636,-1601.7,0.00030684,2]
[311026346,1704873073647,-524.24,0.00030684,2]
[311026347,1704873073657,-500.0,0.00030684,2]
[311026348,1704873073667,-1017.74,0.00030684,2]
[311026349,1704873073677,-500.0,0.00030684,2]
[311026350,1704873073687,-500.0,0.00030684,2]
[311026351,1704873073697,-500.0,0.00030684,2]
[311026352,1704873073707,-791.41,0.00030684,2]
[311026353,1704873073717,-1118.71,0.00030684,2]
[311026354,1704873073727,-500.0,0.00030684,2]
[311026355,1704873073737,-626.68,0.00030684,2]
[311026356,1704873073746,-1049.71,0.00030684,2]
[311026357,1704873073756,-500.0,0.00030684,2]
[311026358,1704873073768,-500.0,0.00030684,2]
[311026359,1704873073779,-500.0,0.00030684,2]
[311026360,1704873073788,-500.0,0.00030684,2]
[311026361,1704873073798,-500.0,0.00030684,2]
[311026362,1704873073809,-733.68,0.00030684,2]
[311026363,1704873073819,-500.0,0.00030684,2]
[311026364,1704873073830,-500.0,0.00030684,2]
[311026365,1704873073840,-500.0,0.00030684,7]
[311026366,1704873073850,-500.0,0.00030684,2]
[311026367,1704873073861,-500.0,0.00030684,2]
[311026368,1704873073872,-561.28,0.00030684,2]
[311026369,1704873073882,-500.0,0.00030684,2]
[311026370,1704873073893,-902.13,0.00030684,2]
[311026371,1704873073903,-500.0,0.00030684,2]
[311026372,1704873073913,-1053.88,0.00030684,2]
[311026373,1704873073923,-1088.38,0.00030684,2]
[311026374,1704873073933,-835.24,0.00030684,2]
[311026375,1704873073943,-721.46,0.00030684,2]
[311026376,1704873073953,-500.0,0.00030684,2]
[311026377,1704873073963,-500.0,0.00030684,2]
[311026378,1704873073974,-500.0,0.00030684,2]
[311026379,1704873073983,-500.0,0.00030684,2]
[311026380,1704873073993,-500.0,0.00030684,2]
[311026381,1704873074003,-919.69,0.00030684,2]
[311026382,1704873074013,-1391.47,0.00030684,2]
[311026383,1704873074023,-649.26,0.00030684,2]
[311026384,1704873074032,-500.0,0.00030684,2]
[311026385,1704873074042,-700.3,0.00030684,2]
[311026386,1704873074061,-500.0,0.00030684,2]
[311026387,1704873074071,-2227.04,0.00030684,2]
[311026388,1704873074082,-596.15,0.00030684,2]
[311026389,1704873074099,-1069.65,0.00030684,2]
[311026390,1704873074109,-1400.2,0.00030684,2]
[311026391,1704873074120,-500.0,0.00030684,2]
[311026392,1704873074130,-641.27,0.00030684,2]
[311026393,1704873074140,-1327.8,0.00030684,2]
[311026394,1704873074151,-513.46,0.00030684,2]
[311026395,1704873074161,-500.0,0.00030684,2]
[311026396,1704873074171,-500.0,0.00030684,2]
[311026397,1704873074181,-695.32,0.00030684,2]
[311026398,1704873074190,-1507.14,0.00030684,2]
[311026399,1704873074200,-1487.28,0.00030684,2]
[311026400,1704873074210,-930.79,0.00030684,2]
[311026401,1704873074229,-500.0,0.00030684,2]
[311026402,1704873074239,-237.93124833,0.00030684,2]
[311026403,1704873074249,-628.25,0.00030684,2]
[311026404,1704873074258,-500.0,0.00030684,2]
[311026405,1704873074268,-1292.48,0.00030684,2]
[311026406,1704873074278,-1760.51,0.00030684,2]
[311026407,1704873074287,-500.0,0.00030684,2]
[311026408,1704873074297,-500.0,0.00030684,2]
[311026409,1704873074307,-500.0,0.00030684,2]
[311026410,1704873074316,-500.0,0.00030684,2]
[311026411,1704873074326,-500.0,0.00030684,2]
[311026412,1704873074335,-1101.16,0.00030684,2]
[311026413,1704873074345,-500.0,0.00030684,2]
[311026414,1704873074355,-500.0,0.00030684,2]
[311026415,1704873074365,-500.0,0.00030684,2]
[311026416,1704873074375,-500.0,0.00030684,2]
[311026417,1704873074385,-500.0,0.00030684,2]
[311026418,1704873074395,-1015.54,0.00030684,2]
[311026419,1704873074405,-1243.94,0.00030684,2]
[311026420,1704873074415,-500.0,0.00030684,2]
[311026421,1704873074425,-1980.15,0.00030684,2]
[311026422,1704873074435,-2469.6,0.00030684,2]
[311026423,1704873074444,-1197.88,0.00030684,2]
[311026424,1704873074454,-747.7,0.00030684,2]
[311026425,1704873074463,-503.16,0.00030684,2]
[311026426,1704873074473,-1264.06,0.00030684,2]
[311026427,1704873074483,-1211.0,0.00030684,2]
[311026428,1704873074492,-500.0,0.00030684,2]
[311026429,1704873074502,-593.51,0.00030684,2]
[311026430,1704873074512,-500.0,0.00030684,2]
[311026431,1704873074521,-269.52292648,0.00030684,2]
[311026432,1704873074531,-1414.15,0.00030684,2]
[311026433,1704873074540,-813.85,0.00030684,2]
[311026434,1704873074551,-500.0,0.00030684,2]
[311026435,1704873074561,-1420.4,0.00030684,2]
[311026436,1704873074570,-505.48945466,0.00030684,2]
[311026437,1704873074581,-500.0,0.00030684,2]
[311026438,1704873074590,-1558.39,0.00030684,2]
[311026439,1704873074600,-957.63,0.00030684,2]
[311026440,1704873074609,-500.0,0.00030684,2]
[311026441,1704873074621,-500.0,0.00030684,2]
[311026442,1704873074631,-824.71,0.00030684,2]
[311026443,1704873074641,-532.28,0.00030684,2]
[311026444,1704873074651,-1129.98,0.00030684,2]
[311026445,1704873074667,-736.45,0.00030684,2]
[311026446,1704873074677,-981.71,0.00030684,2]
[311026447,1704873074696,-876.95,0.00030684,2]
[311026448,1704873074705,-1067.63,0.00030684,2]
[311026449,1704873074716,-500.0,0.00030684,2]
[311026450,1704873074726,-239.1530196,0.00030684,2]
[311026451,1704873074739,-500.0,0.00030684,2]
[311026452,1704873074755,-630.17,0.00030684,2]
[311026453,1704873074766,-500.0,0.00030684,2]
[311026454,1704873074777,-1523.04,0.00030684,2]
[311026455,1704873074788,-1018.05,0.00030684,2]
[311026456,1704873074798,-817.46,0.00030684,2]
[311026457,1704873074808,-1111.27,0.00030684,2]
[311026458,1704873074818,-1324.82,0.00030684,2]
[311026459,1704873074828,-607.77,0.00030684,2]
[311026460,1704873074838,-667.86,0.00030684,2]
[311026461,1704873074847,-500.0,0.00030684,2]
[311026462,1704873074858,-515.0,0.00030684,2]
[311026463,1704873074869,-500.0,0.00030684,2]
[311026464,1704873074881,-967.53,0.00030684,2]
[311026465,1704873074891,-500.0,0.00030684,2]
[311026466,1704873074902,-500.0,0.00030684,2]
[311026467,1704873074912,-500.0,0.00030684,2]
[311026468,1704873074922,-1566.35,0.00030684,2]
[311026469,1704873074931,-500.0,0.00030684,2]
[311026470,1704873074942,-660.62,0.00030684,2]
[311026471,1704873074952,-1709.95,0.00030684,2]
[311026472,1704873074962,-435.42342256,0.00030684,2]
[311026473,1704873074972,-1326.24,0.00030684,2]
[311026474,1704873074982,-500.0,0.00030684,2]
[311026475,1704873074992,-1644.17,0.00030684,2]
[311026476,1704873075002,-500.0,0.00030684,2]
[311026477,1704873075013,-500.0,0.00030684,2]
[311026478,1704873075023,-500.0,0.00030684,2]
[311026479,1704873075033,-563.55,0.00030684,2]
[311026480,1704873075043,-970.8,0.00030684,2]
[311026481,1704873075053,-978.28,0.00030684,2]
[311026482,1704873075064,-500.0,0.00030684,2]
[311026483,1704873075074,-910.11,0.00030684,2]
[311026484,1704873075084,-500.0,0.00030684,2]
[311026485,1704873075094,-851.03,0.00030684,2]
[311026486,1704873075104,-500.0,0.00030684,2]
[311026487,1704873075114,-597.67,0.00030684,2]
[311026488,1704873075127,-500.0,0.00030684,2]
[311026489,1704873075136,-1073.72,0.00030684,2]
[311026490,1704873075146,-500.0,0.00030684,2]
[311026491,1704873075156,-500.0,0.00030684,2]
[311026492,1704873075167,-500.0,0.00030684,2]
[311026493,1704873075177,-500.0,0.00030684,2]
[311026494,1704873075187,-790.85,0.00030684,2]
[311026495,1704873075197,-1749.73,0.00030684,2]
[311026496,1704873075207,-1303.11,0.00030684,2]
[311026497,1704873075217,-500.0,0.00030684,2]
[311026498,1704873075227,-500.0,0.00030684,2]
[311026499,1704873075237,-648.37,0.00030684,2]
[311026500,1704873075247,-1844.47,0.00030684,2]
[311026501,1704873075257,-1066.48,0.00030684,2]
[311026502,1704873075267,-500.0,0.00030684,2]
[311026503,1704873075276,-500.0,0.00030684,2]
[311026504,1704873075287,-500.0,0.00030684,2]
[311026505,1704873075297,-908.11,0.00030684,2]
[311026506,1704873075307,-914.77,0.00030684,2]
[311026507,1704873075317,-500.0,0.00030684,2]
[311026508,1704873075326,-500.0,0.00030684,2]
[311026509,1704873075336,-500.0,0.00030684,2]
[311026510,1704873075346,-500.0,0.00030684,2]
[311026511,1704873075356,-926.31,0.00030684,2]
[311026512,1704873075370,-2029.1,0.00030684,2]
[311026513,1704873075380,-644.04,0.00030684,2]
[311026514,1704873075392,-500.0,0.00030684,2]
[311026515,1704873075404,-500.0,0.00030684,2]
[311026516,1704873075415,-500.0,0.00030684,2]
[311026517,1704873075424,-500.0,0.00030684,2]
[311026518,1704873075433,-500.0,0.00030684,2]
[311026519,1704873075443,-1198.29,0.00030684,2]
[311026520,1704873075453,-1624.99,0.00030684,2]
[311026521,1704873075462,-1948.61,0.00030684,2]
[311026522,1704873075472,-994.71,0.00030684,2]
[311026523,1704873075482,-1211.39,0.00030684,2]
[311026524,1704873075492,-504.90931087,0.00030684,2]
[311026525,1704873075502,-1786.72,0.00030684,2]
[311026526,1704873075512,-500.0,0.00030684,2]
[311026527,1704873075521,-1120.55,0.00030684,2]
[311026528,1704873075531,-500.0,0.00030684,2]
[311026529,1704873075541,-500.0,0.00030684,2]
[311026530,1704873075551,-961.57,0.00030684,2]
[311026531,1704873075561,-500.0,0.00030684,2]
[311026532,1704873075570,-500.0,0.00030684,2]
[311026533,1704873075580,-530.95,0.00030684,2]
[311026534,1704873075589,-932.64,0.00030684,2]
[311026535,1704873075599,-604.28,0.00030684,2]
[311026536,1704873075609,-871.32,0.00030684,2]
[311026537,1704873075620,-834.43,0.00030684,2]
[311026538,1704873075631,-588.04,0.00030684,2]
[311026539,1704873075641,-582.56,0.00030684,2]
[311026540,1704873075651,-500.0,0.00030684,2]
[311026541,1704873075662,-926.79,0.00030684,2]
[311026542,1704873075672,-910.03,0.00030684,2]
[311026543,1704873075682,-1433.8,0.00030684,2]
[311026544,1704873075692,-500.0,0.00030684,2]
[311026545,1704873075702,-522.78,0.00030684,2]
[311026546,1704873075713,-1734.45,0.00030684,2]
[311026547,1704873076038,-1753.3,0.00030684,2]
[311026548,1704873076061,-584.14206549,0.00030684,2]
[311026549,1704873076071,-2732.98,0.00030684,2]
[311026550,1704873076081,-500.0,0.00030684,2]
[311026551,1704873076090,-1244.1,0.00030684,2]
[311026552,1704873076100,-500.0,0.00030684,2]
[311026553,1704873076110,-500.0,0.00030684,2]
[311026554,1704873076121,-1350.89,0.00030684,2]
[311026555,1704873076130,-781.62,0.00030684,2]
[311026556,1704873076139,-500.0,0.00030684,2]
[311026557,1704873076148,-500.0,0.00030684,2]
[311026558,1704873076158,-500.0,0.00030684,2]
[311026559,1704873076170,-500.0,0.00030684,2]
[311026560,1704873076180,-981.17,0.00030684,2]
[311026561,1704873076190,-500.0,0.00030684,2]
[311026562,1704873076199,-1911.43,0.00030684,2]
[311026563,1704873076208,-500.0,0.00030684,2]
[311026564,1704873076218,-500.0,0.00030684,2]
[311026565,1704873076227,-500.0,0.00030684,2]
[311026566,1704873076237,-986.22,0.00030684,2]
[311026567,1704873076246,-1008.93,0.00030684,2]
[311026568,1704873076256,-500.0,0.00030684,2]
[311026569,1704873076265,-548.72,0.00030684,2]
[311026570,1704873076274,-2028.87,0.00030684,2]
[311026571,1704873076283,-1869.36,0.00030684,2]
[311026572,1704873076293,-500.0,0.00030684,2]
[311026573,1704873076302,-500.0,0.00030684,2]
[311026574,1704873076311,-1000.0,0.00030684,2]
[311026575,1704873076320,-941.34,0.00030684,2]
[311026576,1704873076330,-500.0,0.00030684,2]
[311026577,1704873076339,-500.0,0.00030684,2]
[311026578,1704873076349,-544.41,0.00030684,2]
[311026579,1704873076358,-604.74,0.00030684,2]
[311026580,1704873076368,-712.53,0.00030684,2]
[311026581,1704873076378,-1854.53,0.00030684,2]
[311026582,1704873076388,-1296.4,0.00030684,2]
[311026583,1704873076397,-1825.36,0.00030684,2]
[311026584,1704873076406,-500.0,0.00030684,2]
[311026585,1704873076415,-500.0,0.00030684,2]
[311026586,1704873076425,-1827.61,0.00030684,2]
[311026587,1704873076434,-500.0,0.00030684,2]
[311026588,1704873076443,-500.0,0.00030684,2]
[311026589,1704873076452,-500.0,0.00030684,2]
[311026590,1704873076462,-500.0,0.00030684,2]
[311026591,1704873076471,-6317.07,0.00030684,2]